Workbook

Sheet Kezdés
B1: A SABLON ISMERTETÉSE
B2: Ezzel a sablonnal induló üzlet pénzügyi tervét hozhatja létre.
B3: Az Áttekintés munkalapon láthatja a pénzügyi tervek áttekintését.
B4: Az Induló költségek sablon és az Ny&V sablon munkalapokkal nyomon követheti az induló költségeket, valamint a nyereséget és a veszteséget.
B5: Az Induló költségek és az Ny&V példa munkalapok táblázatokba foglalt mintaadatokat tartalmaznak.
B6: Megjegyzés:
B7: Mindegyik munkalap A oszlopában további útmutatást olvashat. Ez a szöveg szándékosan van elrejtve. Ha törölni szeretné a szöveget, jelölje ki az A oszlopot, majd nyomja le a DELETE billentyűt. Ha láthatóvá szeretné tenni a szöveget, jelölje ki az A oszlopot, majd módosítsa a betűszínt.
B8: Ha többet szeretne megtudni a táblázatokról, nyomja le a SHIFT+F10 billentyűkombinációt egy táblázaton belül, és válassza a TÁBLÁZAT parancsot, majd a HELYETTESÍTŐ SZÖVEG elemet.

Sheet Áttekintés
B1: INDULÓ VÁLLALKOZÁS PÉNZÜGYI CSOMAGJA
B2: A pénzügyi tervek létrehozása minden üzleti tervezést magában foglal. Miután azonosította a terméket, a célpiacot és a megcélzott ügyfeleket, valamint a díjszabást, készen áll a költségek, az értékesítések és a nyereség előrejelzésére. Ezek az elemek a feltételezésekkel együtt segítenek megbecsülni az értékesítési előrejelzést. Az üzlet másik oldala, hogy várhatóan milyen költségei lesznek. Fontos folyamatosan látni, hogy mikor nyereséges a vállalkozás. A vállalkozás elindításakor fontos tudni azt is, hogy milyen költségeket kell kifizetnie az ügyfeleknek való értékesítések vagy az azokból befolyó pénz beérkezése előtt.
B3: Tervezett indítási költségek: A következő lapon található Indítási költségek sablon nevű táblázat egy üres sablon, amely tartalmaz néhány útmutatást az első lépésekhez. A következő, Indítási költségek példája nevű lapon a vállalkozás elindításához esetleg szükséges, folyamatos és egyszeri költségelemek mintái láthatók. Sok vállalkozás először hitelből fizet, és nem részesül azonnal bevételből. Fontos megbecsülni, hogy mikor kezd tőke áramlani a vállalatba, ehhez feltételezni kell, hogy az egyszeri kiadásokon túl hány hónapnyi ismétlődő tételeket kell kifizetni a megtakarításokból vagy a kezdeti befektetésből.
B4: Tervezett nyereség- és veszteségmodell: A Ny&V sablon címkéjű lapon egy üres sablont talál az értékesítési előrejelzéshez, valamint egy nyereség- és veszteségmodellt. A következő, Ny&V példa nevű lapon egy kisvállalkozás az első 12 hónapos működésre vonatkozó előrejelzéseinek mintáját láthatja. Az egyes modellek táblázatának felső része a tervezett értékesítéseket és bruttó nyereséget jeleníti meg. Ez jó hely az értékesítési előrejelzés létrehozásának megkezdéséhez. A következő szakasz az ugyanarra a hónapra előrejelzett ismétlődő kiadásokat részletezi. Ezeknek összhangban kell lenniük az előző szakaszban elvégzett becsült indítási költségekkel. A modell alján látni fogja, hogy mikor válik nyereségessé, és mely kiadási tételek vannak a legnagyobb hatással a jövedelmezőségre.
B5: Kövesse nyomon az eladott termékekből származó bevételek és költségek becslésére vonatkozó feltételezéseket. Azoknak a vállalkozásoknak, amelyek még nem kezdték meg a működést, tisztában kell lennie vele, hogyan becsülheti meg ezeket a termékekre vagy szolgáltatásokra vonatkozóan. Alább talál néhány becslési útmutatót:
B6: Bevétel: Először határozza meg a célpiacból (a leendő ügyfelek, vállalkozások vagy fogyasztók csoportjából), hogy ezek közül hány lenne cél az első évben. Ezek közül várhatóan hány százalékban fog üzletet kötni? Várhatóan átlagosan hány tranzakció fog történni a termék vagy szolgáltatás megvásárlására? Hány tranzakciót képes elvégezni az első hónapban, a másodikban és így tovább? Érdemes lehet az első hónapban egy számmal kezdeni, és százalékkal növelni, például 10%-kal. Például takarítási szolgáltatásokat értékesít a városában lévő kisvállalkozásoknak, és úgy gondolja, hogy 500 vállalkozásnak van szüksége a szolgáltatásra. Ha az átlagos szerződés havi 250 USD értékű, akkor meg kell becsülnie, hogy hány vállalkozással tud szerződést kötni az első év egyes hónapjaiban.
B7: Eladott áruk beszerzési értéke (ELÁBÉ): Ezt a termékhez és egyes szolgáltatásokhoz kell kiszámítani. Ez a termék előállításának belefoglalt díja. Ha például ruházatot értékesít, akkor az ELÁBÉ az a díj, amelyet a ruházatért a gyártónak fizetett. Ha saját maga készítené őket, az anyagok és az elkészítésükhöz szükséges munka költsége lenne. Szolgáltatások esetén ez az egy órányi számlázható munkára vonatkozó közvetlen munkadíj. A Ny&V sablonon a Bruttó nyereség alatt lévő összes tétel rögzített vagy a teljes üzletre vonatkozó többletköltség, például a bérleti díj, a telefonszámla vagy akár a marketing költségei.

Sheet Indítási költségek sablon
B1: INDÍTÁSI KÖLTSÉGEK
B2: Az Ön kávézója | C2: =TODAY() -> 2022-01-13
B4: KÖLTSÉGTÉTELEK | C4: HÓNAP | D4: KÖLTSÉG/HÓNAP | E4: EGYSZERI KÖLTSÉG | F4: TELJES KÖLTSÉG
B5: Hirdetés/marketing | F5: =(C5*D5)+IF(E5>0,E5,0) -> 0 Ft
B6: Alkalmazotti fizetések | F6: =(C6*D6)+IF(E6>0,E6,0) -> 0 Ft
B7: Alkalmazottak bérjárulékai és juttatásai | F7: 0 Ft
B8: Kölcsönzés/bérlet kifizetése/közműdíj | F8: 0 Ft
B9: Postaköltség/szállítás | F9: 0 Ft
B10: BECSÜLT KEZDŐ KÖLTSÉGKERET | F10: =SUBTOTAL(109,Indítási[TELJES KÖLTSÉG]) -> 0

Sheet Indítási költségek példa
B1: INDÍTÁSI KÖLTSÉGEK
B2: ='Indítási költségek sablon'!B2 -> Az Ön kávézója | C2: =TODAY() -> 2022-01-13
B4: KÖLTSÉGTÉTELEK | C4: HÓNAP | D4: KÖLTSÉG/HÓNAP | E4: EGYSZERI KÖLTSÉG | F4: TELJES KÖLTSÉG
B5: Hirdetés/marketing | C5: 3 | D5: 300 Ft | E5: 2,000 Ft | F5: =(C5*D5)+IF(E5>0,E5,0) -> 2,900 Ft
B6: Alkalmazotti fizetések | C6: 4 | D6: 3,500 Ft | E6: 2 Ft | F6: =(C6*D6)+IF(E6>0,E6,0) -> 14,002 Ft
B7: Alkalmazottak bérjárulékai és juttatásai | C7: 4 | D7: 500 Ft | E7: 2,000 Ft | F7: 4,000 Ft
B8: Kölcsönzés/bérlet kifizetése/közműdíj | C8: 4 | D8: 750 Ft | E8: 3,000 Ft | F8: 6,000 Ft
B9: Postaköltség/szállítás | C9: 1 | D9: 25 Ft | E9: 25 Ft | F9: 50 Ft
B10: BECSÜLT KEZDŐ KÖLTSÉGKERET | F10: =SUM(F6:F9) -> 24,052 Ft

Sheet P&L sablon
B1: INDÍTÁSI KÖLTSÉGEK
B2: ='Indítási költségek sablon'!B2 -> Az Ön kávézója | C2: =TODAY() -> 2022-01-13
B4: ÁRBEVÉTEL | C4: JAN. | D4: FEBR. | E4: MÁRC. | F4: ÁPR. | G4: MÁJ. | H4: JÚN. | I4: JÚL. | J4: AUG. | K4: SZEPT. | L4: OKT. | M4: NOV. | N4: DEC. | O4: ÉV EDDIG
B5: Becsült termékértékesítések | C5: 0 Ft | D5: 0 Ft | E5: 0 Ft | F5: 0 Ft | G5: 0 Ft | H5: 0 Ft | I5: 0 Ft | J5: 0 Ft | K5: 0 Ft | L5: 0 Ft | M5: 0 Ft | N5: 0 Ft | O5: =SUM(C5:N5) -> 0 Ft
B6: Kevesebb értékesítési hozam és kedvezmények | C6: 0 Ft | D6: 0 Ft | E6: 0 Ft | F6: 0 Ft | G6: 0 Ft | H6: 0 Ft | I6: 0 Ft | J6: 0 Ft | K6: 0 Ft | L6: 0 Ft | M6: 0 Ft | N6: 0 Ft | O6: =SUM(C6:N6) -> 0 Ft
B7: Szolgáltatási bevétel | C7: 0 Ft | D7: 0 Ft | E7: 0 Ft | F7: 0 Ft | G7: 0 Ft | H7: 0 Ft | I7: 0 Ft | J7: 0 Ft | K7: 0 Ft | L7: 0 Ft | M7: 0 Ft | N7: 0 Ft | O7: 0 Ft
B8: Egyéb bevétel | C8: 0 Ft | D8: 0 Ft | E8: 0 Ft | F8: 0 Ft | G8: 0 Ft | H8: 0 Ft | I8: 0 Ft | J8: 0 Ft | K8: 0 Ft | L8: 0 Ft | M8: 0 Ft | N8: 0 Ft | O8: 0 Ft
B9: Nettó eladások | C9: =SUBTOTAL(109,Mintabevétel[JAN.]) -> 0 Ft | D9: =SUBTOTAL(109,Mintabevétel[FEBR.]) -> 0 Ft | E9: =SUBTOTAL(109,Mintabevétel[MÁRC.]) -> 0 Ft | F9: =SUBTOTAL(109,Mintabevétel[ÁPR.]) -> 0 Ft | G9: =SUBTOTAL(109,Mintabevétel[MÁJ.]) -> 0 Ft | H9: =SUBTOTAL(109,Mintabevétel[JÚN.]) -> 0 Ft | I9: =SUBTOTAL(109,Mintabevétel[JÚL.]) -> 0 Ft | J9: =SUBTOTAL(109,Mintabevétel[AUG.]) -> 0 Ft | K9: =SUBTOTAL(109,Mintabevétel[SZEPT.]) -> 0 Ft | L9: =SUBTOTAL(109,Mintabevétel[OKT.]) -> 0 Ft | M9: =SUBTOTAL(109,Mintabevétel[NOV.]) -> 0 Ft | N9: =SUBTOTAL(109,Mintabevétel[DEC.]) -> 0 Ft | O9: =SUM(Mintabevétel[[#Totals],[JAN.]:[DEC.]]) -> 0 Ft
B10: Eladott áruk beszerzési értéke | C10: =C5*0.4 -> 0 Ft | D10: 0 Ft | E10: 0 Ft | F10: 0 Ft | G10: 0 Ft | H10: 0 Ft | I10: 0 Ft | J10: 0 Ft | K10: 0 Ft | L10: 0 Ft | M10: 0 Ft | N10: 0 Ft | O10: 0 Ft
B11: Bruttó profit | C11: =IFERROR(Mintabevétel[[#Totals],[JAN.]]-C10,"") -> 0 Ft | D11: =IFERROR(Mintabevétel[[#Totals],[FEBR.]]-D10,"") -> 0 Ft | E11: =IFERROR(Mintabevétel[[#Totals],[MÁRC.]]-E10,"") -> 0 Ft | F11: =IFERROR(Mintabevétel[[#Totals],[ÁPR.]]-F10,"") -> 0 Ft | G11: =IFERROR(Mintabevétel[[#Totals],[MÁJ.]]-G10,"") -> 0 Ft | H11: =IFERROR(Mintabevétel[[#Totals],[JÚN.]]-H10,"") -> 0 Ft | I11: =IFERROR(Mintabevétel[[#Totals],[JÚL.]]-I10,"") -> 0 Ft | J11: =IFERROR(Mintabevétel[[#Totals],[AUG.]]-J10,"") -> 0 Ft | K11: =IFERROR(Mintabevétel[[#Totals],[SZEPT.]]-K10,"") -> 0 Ft | L11: =IFERROR(Mintabevétel[[#Totals],[OKT.]]-L10,"") -> 0 Ft | M11: =IFERROR(Mintabevétel[[#Totals],[NOV.]]-M10,"") -> 0 Ft | N11: =IFERROR(Mintabevétel[[#Totals],[DEC.]]-N10,"") -> 0 Ft | O11: 0 Ft
B13: KIADÁSOK | C13: JAN. | D13: FEBR. | E13: MÁRC. | F13: ÁPR. | G13: MÁJ. | H13: JÚN. | I13: JÚL. | J13: AUG. | K13: SZEPT. | L13: OKT. | M13: NOV. | N13: DEC. | O13: ÉV EDDIG
B14: Munkabérek | C14: 0 Ft | D14: 0 Ft | E14: 0 Ft | F14: 0 Ft | G14: 0 Ft | H14: 0 Ft | I14: 0 Ft | J14: 0 Ft | K14: 0 Ft | L14: 0 Ft | M14: 0 Ft | N14: 0 Ft | O14: =SUM(C14:N14) -> 0 Ft
B15: Marketing/hirdetés | C15: 0 Ft | D15: 0 Ft | E15: 0 Ft | F15: 0 Ft | G15: 0 Ft | H15: 0 Ft | I15: 0 Ft | J15: 0 Ft | K15: 0 Ft | L15: 0 Ft | M15: 0 Ft | N15: 0 Ft | O15: =SUM(C15:N15) -> 0 Ft
B16: Értékesítési jutalékok | C16: 0 Ft | D16: 0 Ft | E16: 0 Ft | F16: 0 Ft | G16: 0 Ft | H16: 0 Ft | I16: 0 Ft | J16: 0 Ft | K16: 0 Ft | L16: 0 Ft | M16: 0 Ft | N16: 0 Ft | O16: 0 Ft
B17: Bérleti díj | C17: 0 Ft | D17: 0 Ft | E17: 0 Ft | F17: 0 Ft | G17: 0 Ft | H17: 0 Ft | I17: 0 Ft | J17: 0 Ft | K17: 0 Ft | L17: 0 Ft | M17: 0 Ft | N17: 0 Ft | O17: 0 Ft
B18: Egyéb 1 | C18: 0 Ft | D18: 0 Ft | E18: 0 Ft | F18: 0 Ft | G18: 0 Ft | H18: 0 Ft | I18: 0 Ft | J18: 0 Ft | K18: 0 Ft | L18: 0 Ft | M18: 0 Ft | N18: 0 Ft | O18: 0 Ft
B19: Összes kiadás | C19: =IF(SUM(C14:C18)=0,"",SUM(C14:C18)) ->  | O19: =SUM(Mintakiadások[[#Totals],[JAN.]:[DEC.]]) -> 0 Ft
B20: Adók előtti bevétel | C20: =IFERROR('P&L sablon'!$C$11-Mintakiadások[[#Totals],[JAN.]],"") ->  | D20: =IFERROR('P&L sablon'!$C$11-Mintakiadások[[#Totals],[FEBR.]],"") ->  | E20: =IFERROR('P&L sablon'!$C$11-Mintakiadások[[#Totals],[MÁRC.]],"") ->  | F20: =IFERROR('P&L sablon'!$C$11-Mintakiadások[[#Totals],[ÁPR.]],"") ->  | G20: =IFERROR('P&L sablon'!$C$11-Mintakiadások[[#Totals],[MÁJ.]],"") ->  | H20: =IFERROR('P&L sablon'!$C$11-Mintakiadások[[#Totals],[JÚN.]],"") ->  | I20: =IFERROR('P&L sablon'!$C$11-Mintakiadások[[#Totals],[JÚL.]],"") ->  | J20: =IFERROR('P&L sablon'!$C$11-Mintakiadások[[#Totals],[AUG.]],"") ->  | K20: =IFERROR('P&L sablon'!$C$11-Mintakiadások[[#Totals],[SZEPT.]],"") ->  | L20: =IFERROR('P&L sablon'!$C$11-Mintakiadások[[#Totals],[OKT.]],"") ->  | M20: =IFERROR('P&L sablon'!$C$11-Mintakiadások[[#Totals],[NOV.]],"") ->  | N20: =IFERROR('P&L sablon'!$C$11-Mintakiadások[[#Totals],[DEC.]],"") ->  | O20: 0 Ft
B21: Fizetendő nyereségadó | C21: =IFERROR(C20*0.15," ") ->  | D21: =IFERROR(D20*0.15," ") ->  | E21: =IFERROR(E20*0.15," ") ->  | O21: =SUM('P&L sablon'!$C$21:$N$21) -> 0 Ft
B23: NETTÓ ÁRBEVÉTEL | C23: =IFERROR(C20-'P&L sablon'!$C$21,"") ->  | D23: =IFERROR(D20-'P&L sablon'!$D$21,"") ->  | E23: =IFERROR(E20-'P&L sablon'!$E$21,"") ->  | F23: =IFERROR(F20-'P&L sablon'!$F$21,"") ->  | G23: =IFERROR(G20-'P&L sablon'!$G$21,"") ->  | H23: =IFERROR(H20-'P&L sablon'!$H$21,"") ->  | I23: =IFERROR(I20-'P&L sablon'!$I$21,"") ->  | J23: =IFERROR(J20-'P&L sablon'!$J$21,"") ->  | K23: =IFERROR(K20-'P&L sablon'!$K$21,"") ->  | L23: =IFERROR(L20-'P&L sablon'!$L$21,"") ->  | M23: =IFERROR(M20-'P&L sablon'!$M$21,"") ->  | N23: =IFERROR(N20-'P&L sablon'!$N$21,"") ->  | O23: =IFERROR(O20-'P&L sablon'!$O$21,"") -> 0 Ft

Sheet P&L példa
B1: INDÍTÁSI KÖLTSÉGEK
B2: ='Indítási költségek sablon'!B2 -> Az Ön kávézója | C2: =TODAY() -> 2022-01-13
B4: ÁRBEVÉTEL | C4: JAN. | D4: FEBR. | E4: MÁRC. | F4: ÁPR. | G4: MÁJ. | H4: JÚN. | I4: JÚL. | J4: AUG. | K4: SZEPT. | L4: OKT. | M4: NOV. | N4: DEC. | O4: ÉV EDDIG
B5: Becsült termékértékesítések | C5: 5,000 Ft | D5: 13,000 Ft | E5: 16,000 Ft | F5: 7,000 Ft | G5: 14,500 Ft | H5: 16,400 Ft | I5: 22,500 Ft | J5: 23,125 Ft | K5: 24,549 Ft | L5: 22,000 Ft | M5: 25,000 Ft | N5: 27,349 Ft | O5: =SUM(C5:N5) -> 216,423 Ft
B6: Kevesebb értékesítési hozam és kedvezmények | C6: 0 Ft | D6: -350 Ft | E6: 0 Ft | F6: -206 Ft | G6: -234 Ft | H6: 0 Ft | I6: 0 Ft | J6: -280 Ft | K6: -1,200 Ft | L6: -1,600 Ft | M6: 0 Ft | N6: -2,400 Ft | O6: =SUM(C6:N6) -> -6,270 Ft
B7: Szolgáltatási bevétel | C7: 0 Ft | D7: 0 Ft | E7: 0 Ft | F7: 0 Ft | G7: 0 Ft | H7: 250 Ft | I7: 350 Ft | J7: 100 Ft | K7: 0 Ft | L7: 0 Ft | M7: 1,245 Ft | N7: 1,360 Ft | O7: 3,305 Ft
B8: Egyéb bevétel | C8: 0 Ft | D8: 0 Ft | E8: 0 Ft | F8: 0 Ft | G8: 0 Ft | H8: 0 Ft | I8: 0 Ft | J8: 1,500 Ft | K8: 0 Ft | L8: 0 Ft | M8: 0 Ft | N8: 0 Ft | O8: 1,500 Ft
B9: Nettó eladások | C9: =SUBTOTAL(109,TénylegesÁrbevétel[JAN.]) -> 5,000 Ft | D9: =SUBTOTAL(109,TénylegesÁrbevétel[FEBR.]) -> 12,650 Ft | E9: =SUBTOTAL(109,TénylegesÁrbevétel[MÁRC.]) -> 16,000 Ft | F9: =SUBTOTAL(109,TénylegesÁrbevétel[ÁPR.]) -> 6,794 Ft | G9: =SUBTOTAL(109,TénylegesÁrbevétel[MÁJ.]) -> 14,266 Ft | H9: =SUBTOTAL(109,TénylegesÁrbevétel[JÚN.]) -> 16,650 Ft | I9: =SUBTOTAL(109,TénylegesÁrbevétel[JÚL.]) -> 22,850 Ft | J9: =SUBTOTAL(109,TénylegesÁrbevétel[AUG.]) -> 24,445 Ft | K9: =SUBTOTAL(109,TénylegesÁrbevétel[SZEPT.]) -> 23,349 Ft | L9: =SUBTOTAL(109,TénylegesÁrbevétel[OKT.]) -> 20,400 Ft | M9: =SUBTOTAL(109,TénylegesÁrbevétel[NOV.]) -> 26,245 Ft | N9: =SUBTOTAL(109,TénylegesÁrbevétel[DEC.]) -> 26,309 Ft | O9: =SUM(TénylegesÁrbevétel[[#Totals],[JAN.]:[DEC.]]) -> 214,958 Ft
B10: Eladott áruk beszerzési értéke | C10: =C5*0.4 -> 2,000 Ft | D10: 5,200 Ft | E10: 6,400 Ft | F10: 2,800 Ft | G10: 5,800 Ft | H10: 6,560 Ft | I10: 9,000 Ft | J10: 9,250 Ft | K10: 9,820 Ft | L10: 8,800 Ft | M10: 10,000 Ft | N10: 10,940 Ft | O10: 86,569 Ft
B11: Bruttó profit | C11: =IFERROR(TénylegesÁrbevétel[[#Totals],[JAN.]]-C10,"") -> 3,000 Ft | D11: =IFERROR(TénylegesÁrbevétel[[#Totals],[FEBR.]]-D10,"") -> 7,450 Ft | E11: =IFERROR(TénylegesÁrbevétel[[#Totals],[MÁRC.]]-E10,"") -> 9,600 Ft | F11: =IFERROR(TénylegesÁrbevétel[[#Totals],[ÁPR.]]-F10,"") -> 3,994 Ft | G11: =IFERROR(TénylegesÁrbevétel[[#Totals],[MÁJ.]]-G10,"") -> 8,466 Ft | H11: =IFERROR(TénylegesÁrbevétel[[#Totals],[JÚN.]]-H10,"") -> 10,090 Ft | I11: =IFERROR(TénylegesÁrbevétel[[#Totals],[JÚL.]]-I10,"") -> 13,850 Ft | J11: =IFERROR(TénylegesÁrbevétel[[#Totals],[AUG.]]-J10,"") -> 15,195 Ft | K11: =IFERROR(TénylegesÁrbevétel[[#Totals],[SZEPT.]]-K10,"") -> 13,529 Ft | L11: =IFERROR(TénylegesÁrbevétel[[#Totals],[OKT.]]-L10,"") -> 11,600 Ft | M11: =IFERROR(TénylegesÁrbevétel[[#Totals],[NOV.]]-M10,"") -> 16,245 Ft | N11: =IFERROR(TénylegesÁrbevétel[[#Totals],[DEC.]]-N10,"") -> 15,369 Ft | O11: 128,389 Ft
B13: KIADÁSOK | C13: JAN. | D13: FEBR. | E13: MÁRC. | F13: ÁPR. | G13: MÁJ. | H13: JÚN. | I13: JÚL. | J13: AUG. | K13: SZEPT. | L13: OKT. | M13: NOV. | N13: DEC. | O13: ÉV EDDIG
B14: Munkabérek | C14: 2,500 Ft | D14: 2,500 Ft | E14: 3,500 Ft | F14: 5,000 Ft | G14: 5,000 Ft | H14: 5,000 Ft | I14: 8,000 Ft | J14: 9,000 Ft | K14: 9,000 Ft | L14: 9,000 Ft | M14: 9,000 Ft | N14: 9,000 Ft | O14: =SUM(C14:N14) -> 76,500 Ft
B15: Marketing/hirdetés | C15: 400 Ft | D15: 450 Ft | E15: 450 Ft | F15: 450 Ft | G15: 900 Ft | H15: 900 Ft | I15: 900 Ft | J15: 900 Ft | K15: 900 Ft | L15: 900 Ft | M15: 1,200 Ft | N15: 1,200 Ft | O15: =SUM(C15:N15) -> 9,550 Ft
B16: Értékesítési jutalékok | C16: 250 Ft | D16: 650 Ft | E16: 800 Ft | F16: 350 Ft | G16: 725 Ft | H16: 820 Ft | I16: 1,125 Ft | J16: 1,156 Ft | K16: 1,227 Ft | L16: 1,100 Ft | M16: 1,250 Ft | N16: 1,367 Ft | O16: 10,821 Ft
B17: Bérleti díj | C17: 1,250 Ft | D17: 1,250 Ft | E17: 1,250 Ft | F17: 1,250 Ft | G17: 1,250 Ft | H17: 1,250 Ft | I17: 1,250 Ft | J17: 1,250 Ft | K17: 1,250 Ft | L17: 1,250 Ft | M17: 1,250 Ft | N17: 1,250 Ft | O17: 15,000 Ft
B18: Összes kiadás | C18: =IF(SUM(C14:C17)=0,"",SUM(C14:C17)) -> 4,400 Ft | D18: 4,850 Ft | E18: 6,000 Ft | F18: 7,050 Ft | G18: 7,875 Ft | H18: 7,970 Ft | I18: 11,275 Ft | J18: 12,306 Ft | K18: 12,377 Ft | L18: 12,250 Ft | M18: 12,700 Ft | N18: 12,817 Ft | O18: =SUM(TénylegesKöltségek[[#Totals],[JAN.]:[DEC.]]) -> 111,871 Ft
B19: Adók előtti bevétel | C19: =IFERROR('P&L példa'!$C$11-TénylegesKöltségek[[#Totals],[JAN.]],"") -> -1,400 Ft | D19: =IFERROR('P&L példa'!$D$11-TénylegesKöltségek[[#Totals],[FEBR.]],"") -> 2,600 Ft | E19: =IFERROR('P&L példa'!$E$11-TénylegesKöltségek[[#Totals],[MÁRC.]],"") -> 3,600 Ft | F19: =IFERROR('P&L példa'!$F$11-TénylegesKöltségek[[#Totals],[ÁPR.]],"") -> -3,056 Ft | G19: =IFERROR('P&L példa'!$G$11-TénylegesKöltségek[[#Totals],[MÁJ.]],"") -> 591 Ft | H19: =IFERROR('P&L példa'!$H$11-TénylegesKöltségek[[#Totals],[JÚN.]],"") -> 2,120 Ft | I19: =IFERROR('P&L példa'!$I$11-TénylegesKöltségek[[#Totals],[JÚL.]],"") -> 2,575 Ft | J19: =IFERROR('P&L példa'!$J$11-TénylegesKöltségek[[#Totals],[AUG.]],"") -> 2,889 Ft | K19: =IFERROR('P&L példa'!$K$11-TénylegesKöltségek[[#Totals],[SZEPT.]],"") -> 1,152 Ft | L19: =IFERROR('P&L példa'!$L$11-TénylegesKöltségek[[#Totals],[OKT.]],"") -> -650 Ft | M19: =IFERROR('P&L példa'!$M$11-TénylegesKöltségek[[#Totals],[NOV.]],"") -> 3,545 Ft | N19: =IFERROR('P&L példa'!$N$11-TénylegesKöltségek[[#Totals],[DEC.]],"") -> 2,552 Ft | O19: =SUM(C19:N19) -> 16,518 Ft
B20: Fizetendő nyereségadó | C20: =C19*0.15 -> -210 Ft | D20: 390 Ft | E20: =E19*0.15 -> 540 Ft | F20: =F19*0.15 -> -458 Ft | G20: =G19*0.15 -> 89 Ft | H20: =H19*0.15 -> 318 Ft | I20: =I19*0.15 -> 386 Ft | J20: =J19*0.15 -> 433 Ft | K20: =K19*0.15 -> 173 Ft | L20: =L19*0.15 -> -98 Ft | M20: =M19*0.15 -> 532 Ft | N20: =N19*0.15 -> 383 Ft | O20: =SUM('P&L példa'!$C$20:$N$20) -> 2,478 Ft
B22: NETTÓ ÁRBEVÉTEL | C22: =IFERROR(C19-'P&L példa'!$C$20," ") -> -1,190 Ft | D22: =IFERROR(D19-'P&L példa'!$D$20," ") -> 2,210 Ft | E22: =IFERROR(E19-'P&L példa'!$E$20,"") -> 3,060 Ft | F22: =IFERROR(F19-'P&L példa'!$F$20,"") -> -2,598 Ft | G22: =IFERROR(G19-'P&L példa'!$G$20,"") -> 502 Ft | H22: =IFERROR(H19-'P&L példa'!$H$20,"") -> 1,802 Ft | I22: =IFERROR(I19-'P&L példa'!$I$20,"") -> 2,189 Ft | J22: =IFERROR(J19-'P&L példa'!$J$20,"") -> 2,455 Ft | K22: =IFERROR(K19-'P&L példa'!$K$20,"") -> 979 Ft | L22: =IFERROR(L19-'P&L példa'!$L$20,"") -> -553 Ft | M22: =IFERROR(M19-'P&L példa'!$M$20,"") -> 3,013 Ft | N22: =IFERROR(N19-'P&L példa'!$N$20,"") -> 2,169 Ft | O22: =IFERROR(O19-'P&L példa'!$O$20,"") -> 14,040 Ft
